bitfinex/quotes_SOLUSD_20250829
["timestamp","ask_amount","ask_price","bid_price","bid_amount"]
[1756470098624,0.06,208.87,208.86,176.78510603]
[1756470102331,1e-08,208.94,208.93,20.0]
[1756470102503,1e-08,208.94,208.93,77.17161583]
[1756470103030,1e-08,208.94,208.93,57.88]
[1756470103217,0.65000001,208.94,208.93,57.88]
[1756470103520,0.65000001,208.94,208.93,57.86]
[1756470103731,19.94161584,208.94,208.93,138.34]
[1756470103934,24.72767882,208.94,208.93,138.34]
[1756470104420,19.94161584,208.94,208.93,138.34]
[1756470104812,1e-08,208.94,208.93,138.34]
[1756470105545,0.65000001,208.94,208.93,138.34]
[1756470106227,1e-08,208.94,208.93,158.32161583]
[1756470106412,1e-08,208.94,208.93,163.10790788]
[1756470109130,1e-08,208.94,208.93,143.81629205]
[1756470109311,1e-08,208.94,208.93,156.34372155]
[1756470110632,1e-08,208.94,208.93,118.48372155]
[1756470110838,1e-08,208.94,208.93,156.34372155]
[1756470111019,1e-08,208.94,208.93,118.48372155]
[1756470111218,1e-08,208.94,208.93,143.81629205]
[1756470111518,1e-08,208.94,208.93,156.34372155]
[1756470112214,1e-08,208.94,208.93,118.48372155]
[1756470112639,1e-08,208.94,208.93,156.34372155]
[1756470113235,0.65000001,208.94,208.93,138.34]
[1756470113736,1e-08,208.94,208.93,138.34]
[1756470114421,1e-08,208.94,208.93,143.12629205]
[1756470115125,1e-08,208.94,208.93,105.26629205]
[1756470115460,1e-08,208.94,208.93,89.45931556]
[1756470115747,0.06,208.96,208.95,59.73775558]
[1756470115934,0.06,208.96,208.95,110.58376847]
[1756470116123,0.06,208.96,208.95,110.79518508]
[1756470116821,0.06,208.96,208.95,115.67806808]
[1756470117649,0.06,208.96,208.95,120.46390201]
[1756470119038,0.06,208.97,208.96,13.73775558]
[1756470119245,0.06,208.97,208.96,26.95518508]
[1756470119740,0.06,208.97,208.96,31.74078998]
[1756470119952,0.06,208.97,208.96,32.21935047]
[1756470120118,0.06,208.97,208.96,30.90862841]
[1756470120323,0.71,208.97,208.95,20.0]
[1756470120520,0.71,208.97,208.96,37.84]
[1756470121051,0.06,208.97,208.96,50.3674295]
[1756470121228,0.06,208.97,208.96,51.0174295]
[1756470121424,0.06,208.97,208.96,12.5274295]
[1756470121744,0.06,208.97,208.96,50.3674295]
[1756470122049,0.06,208.97,208.96,55.1530344]
[1756470122619,0.06,208.97,208.96,69.39862841]
[1756470122841,0.06,208.97,208.96,19.03119891]
[1756470123131,0.06,208.97,208.96,69.54078998]
[1756470123323,0.06,208.99,208.96,282.46078998]
[1756470123537,0.06,208.99,208.98,46.12302351]
[1756470123852,0.06,208.99,208.98,84.10518508]
[1756470124148,0.82,209.08,208.98,84.10518508]
[1756470124149,0.1,209.08,209.07,20.0]
[1756470124447,0.1,209.08,209.07,57.84]
[1756470125430,0.1,209.08,209.07,77.09076569]
[1756470127222,0.1,209.08,209.07,96.1194467]
[1756470129340,0.1,209.08,209.07,76.86868101]
[1756470129650,0.1,209.08,209.07,58.2794467]
[1756470129840,0.1,209.08,209.07,96.0994467]
[1756470130351,0.1,209.08,209.07,96.24160827]
[1756470132343,1e-08,209.08,209.07,96.24160827]
[1756470133447,1e-08,209.08,209.07,38.37868101]
[1756470133655,1e-08,209.08,209.07,90.6663597]
[1756470134859,1e-08,209.08,209.07,95.4494467]
[1756470135961,1e-08,209.08,209.07,96.0994467]
[1756470136534,1e-08,209.08,209.07,76.84868101]
[1756470136739,1e-08,209.08,209.07,96.0994467]
[1756470137557,1e-08,209.08,209.07,96.24160827]
[1756470138556,1e-08,209.08,209.07,98.15864827]
[1756470138758,1e-08,209.08,209.07,96.24160827]
[1756470140571,1e-08,209.08,209.07,58.42160827]
[1756470140943,1e-08,209.08,209.07,96.22160827]
[1756470141259,1e-08,209.08,209.07,58.42160827]
[1756470141449,1e-08,209.08,209.07,96.22160827]
[1756470141657,1e-08,209.08,209.07,58.42160827]
[1756470141855,1e-08,209.08,209.07,96.22160827]
[1756470142034,1e-08,209.08,209.07,95.57160827]
[1756470142237,1e-08,209.08,209.07,96.22160827]
[1756470143848,1e-08,209.08,209.07,58.42160827]
[1756470144262,1e-08,209.08,209.07,96.22160827]
[1756470144460,1e-08,209.08,209.07,58.42160827]
[1756470144659,1e-08,209.08,209.07,96.22160827]
[1756470145364,1e-08,209.08,209.07,176.64160827]
[1756470146957,1e-08,209.08,209.07,178.55864827]
[1756470147164,1e-08,209.08,209.07,176.64160827]
[1756470147469,1e-08,209.08,209.07,169.8962986]
[1756470149354,0.06,209.11,209.1,33.59559401]
[1756470149559,0.06,209.11,209.1,83.90105003]
[1756470149761,0.06,209.11,209.1,84.55105003]
[1756470150154,0.06,209.11,209.1,89.47561236]
[1756470150559,0.06,209.11,209.1,88.82561236]
[1756470150967,0.06,209.11,209.1,89.49561236]
[1756470152181,0.06,209.13,209.1,89.49561236]
[1756470152182,0.06,209.13,209.12,26.0]
[1756470152355,0.06,209.13,209.12,84.0432116]
[1756470152552,0.06,209.13,209.12,84.7132116]
[1756470153579,0.06,209.13,209.12,34.40775558]
[1756470153753,0.06,209.13,209.12,84.7132116]
[1756470154271,0.06,209.13,209.12,88.82515498]
[1756470154460,0.06,209.13,209.12,89.49515498]
[1756470154949,0.06,209.13,209.12,38.37753739]
[1756470155152,0.73,209.13,209.12,76.15753739]
[1756470155350,0.73,209.13,209.12,88.66299341]
[1756470155877,0.73,209.13,209.12,83.88105003]
[1756470156380,0.06,209.13,209.12,88.66299341]
[1756470157152,0.73,209.13,209.12,83.88105003]
[1756470157574,0.06,209.13,209.12,83.88105003]
[1756470157770,0.73,209.13,209.12,88.66299341]
[1756470157969,0.06,209.13,209.12,88.66299341]
[1756470159564,0.06,209.13,209.12,83.88105003]
[1756470159766,0.73,209.13,209.12,71.37559401]
[1756470159975,0.73,209.13,209.12,88.66299341]
[1756470160176,0.06,209.13,209.12,88.66299341]
[1756470160687,0.73,209.13,209.12,83.88105003]
[1756470160987,13.23545602,209.13,209.12,20.0]
[1756470161785,18.01717074,209.13,209.12,20.0]
[1756470163580,26.0,209.1,209.07,57.81]
[1756470163897,18.01717074,209.13,209.11,20.0]
[1756470163898,0.67,209.12,209.11,20.0]
[1756470164071,0.67,209.12,209.11,57.78]
[1756470164583,13.17545602,209.12,209.11,57.78]
[1756470166579,17.9573994,209.12,209.09,20.0]
[1756470166898,12.50545602,209.1,209.09,20.0]
[1756470167087,13.17545602,209.1,209.09,20.0]
[1756470168091,17.95785678,209.1,209.09,20.0]
[1756470170997,13.17545602,209.1,209.09,20.0]
[1756470171685,17.95785678,209.1,209.09,20.0]
[1756470174967,17.95785678,209.1,209.09,20.03]
[1756470175408,18.10001835,209.1,209.09,20.03]
[1756470175624,21.97832664,209.1,209.09,20.03]
[1756470176070,21.97832664,209.1,209.09,0.03]
[1756470176271,4.08046986,209.11,209.09,38.48]
[1756470176467,0.06,209.11,209.1,20.67]
[1756470177587,0.06,209.11,209.1,46.77105003]
[1756470177793,0.06,209.11,209.1,51.69561236]
[1756470177977,0.06,209.11,209.1,66.07203536]
[1756470178179,0.06,209.11,209.1,65.92987379]
[1756470178477,0.06,209.11,209.1,66.07203536]
[1756470178902,1e-08,209.11,209.1,66.07203536]
[1756470180805,1e-08,209.11,209.1,103.85203536]
[1756470183005,1e-08,209.11,209.1,123.85203536]
[1756470183786,4.68046986,209.24,209.14,13.59559401]
[1756470183990,39.16545602,209.24,209.23,20.0]
[1756470184291,39.16545602,209.24,209.23,100.42]
[1756470185598,13.16545602,209.24,209.23,100.42]
[1756470186300,39.16545602,209.24,209.23,100.42]
[1756470187198,26.66,209.24,209.23,100.42]
[1756470187506,31.43920091,209.24,209.23,100.42]
[1756470187702,47.96512679,209.24,209.23,20.0]
[1756470187907,47.96512679,209.24,209.12,26.88119002]
[1756470187908,26.0,209.21,209.18,20.0]
[1756470188202,12.50545602,209.19,209.18,20.0]
[1756470188396,26.0,209.21,209.2,20.0]
[1756470188597,39.16545602,209.21,209.2,20.0]
[1756470189415,43.94534225,209.21,209.2,20.0]
[1756470189721,43.94534225,209.21,209.18,20.0]
[1756470189918,12.50545602,209.19,209.18,20.0]
[1756470190125,26.0,209.2,209.18,20.0]
[1756470190422,12.50545602,209.23,209.22,20.0]
[1756470190655,13.16545602,209.23,209.22,20.0]
[1756470191500,17.94488535,209.23,209.22,20.0]
[1756470192114,17.28488535,209.23,209.22,20.0]
[1756470192715,12.50545602,209.23,209.22,20.0]
[1756470193429,17.28488535,209.23,209.22,20.0]
[1756470193844,17.94488535,209.23,209.22,20.0]
[1756470194022,26.0,209.21,209.2,20.0]
[1756470194222,39.16545602,209.21,209.2,20.0]
[1756470195131,39.16545602,209.21,209.18,20.0]
[1756470195310,12.50545602,209.19,209.18,20.0]
[1756470195711,17.28579924,209.19,209.18,20.0]
[1756470197627,17.94579924,209.19,209.17,80.42]
[1756470197939,12.50545602,209.18,209.17,80.42]
[1756470198335,13.16545602,209.18,209.17,80.42]
[1756470198652,13.16545602,209.18,209.16,20.0]
[1756470198653,26.0,209.15,209.14,20.0]
[1756470198821,39.16545602,209.15,209.14,20.0]
[1756470199015,38.50545602,209.15,209.14,20.0]
[1756470199629,43.28671349,209.15,209.14,20.0]
[1756470199837,43.28671349,209.15,209.12,20.0]
[1756470200142,12.50545602,209.13,209.12,20.0]
[1756470202440,17.28717074,209.13,209.12,20.0]
[1756470202637,12.50545602,209.13,209.12,20.0]
[1756470202818,4.01663359,209.2,209.18,20.0]
[1756470203165,12.50545602,209.19,209.18,20.0]
[1756470203346,4.78011472,209.2,209.18,20.0]
[1756470203520,12.50545602,209.19,209.18,20.0]
[1756470204340,4.7798396,209.22,209.2,20.0]
[1756470204539,12.50545602,209.21,209.2,20.0]
[1756470206223,38.50545602,209.21,209.2,20.0]
[1756470206623,43.28534225,209.21,209.2,20.0]
[1756470207546,26.0,209.21,209.2,20.0]
[1756470207754,12.50545602,209.21,209.2,20.72]
[1756470208627,0.06,209.23,209.22,20.0]
[1756470208827,0.06,209.23,209.22,100.42]
[1756470209035,12.56545602,209.23,209.22,101.14]
[1756470210853,18.01488535,209.23,209.22,20.0]
[1756470211038,26.0,209.21,209.2,20.0]
[1756470211241,38.50545602,209.21,209.2,20.0]
[1756470211431,39.17545602,209.21,209.2,20.0]
[1756470211930,4.78011472,209.2,209.18,20.0]
[1756470212157,26.0,209.17,209.16,20.0]
[1756470212331,38.50545602,209.17,209.16,20.0]
[1756470213133,26.0,209.17,209.16,20.0]
[1756470213330,12.50545602,209.17,209.16,20.71]
[1756470213765,12.50545602,209.19,209.16,20.71]
[1756470214069,12.50545602,209.19,209.18,20.0]
[1756470214279,12.56545602,209.23,209.21,20.0]
[1756470214569,12.56545602,209.23,209.22,0.71]
[1756470216361,0.06,209.23,209.22,0.71]
[1756470216661,12.56545602,209.23,209.22,38.45]
[1756470217038,0.06,209.23,209.22,38.45]
[1756470218537,0.06,209.23,209.22,118.87]
[1756470218736,0.06,209.23,209.22,38.45]
[1756470220254,12.56545602,209.23,209.22,38.45]
[1756470220561,12.56545602,209.23,209.22,119.05]
[1756470220562,0.06,209.23,209.22,119.05]
[1756470222864,0.06,209.23,209.22,69.3307078]
[1756470223373,0.06,209.23,209.22,282.57286937]
[1756470223549,4.01663359,209.33,209.32,20.0]
[1756470223877,12.50545602,209.33,209.32,57.74]
[1756470224577,30.01663359,209.35,209.34,20.0]
[1756470224762,12.50545602,209.35,209.34,20.0]
[1756470224948,12.50545602,209.35,209.34,57.74]
[1756470225265,8.79312526,209.36,209.34,57.74]
[1756470225573,12.50545602,209.35,209.34,57.74]
[1756470226069,13.17545602,209.35,209.34,20.0]
[1756470226388,26.0,209.34,209.31,20.0]
[1756470226546,12.50545602,209.32,209.31,20.0]
[1756470227053,17.28283037,209.32,209.31,20.0]
[1756470227556,5.35163975,209.41,209.4,20.0]
[1756470227758,13.17545602,209.53,209.52,20.0]
[1756470228261,26.0,209.57,209.54,20.0]
[1756470228453,12.50545602,209.55,209.54,20.0]
[1756470228971,13.17545602,209.55,209.54,20.0]
[1756470229162,13.17545602,209.55,209.52,20.0]
[1756470229465,13.59559401,209.63,209.54,20.0]
[1756470229969,4.24984358,209.62,209.54,20.0]
[1756470230171,4.24984358,209.62,209.45,14.353037]
[1756470230172,0.67,209.59,209.52,20.0]
[1756470230353,28.30660557,209.6,209.54,20.0]
[1756470230354,26.0,209.57,209.54,20.0]
[1756470230558,0.67,209.56,209.49,20.0]
[1756470230864,19.17842078,209.5,209.49,20.0]
[1756470231260,19.17842078,209.51,209.49,20.0]
[1756470231466,19.17842078,209.52,209.51,20.0]
[1756470231870,19.84842078,209.52,209.49,20.0]
[1756470232051,19.17842078,209.5,209.49,20.0]
[1756470232369,0.67,209.5,209.49,20.0]
[1756470232674,19.17842078,209.5,209.49,20.0]
[1756470232871,26.67,209.57,209.54,20.0]
[1756470233072,19.17842078,209.56,209.54,20.0]
[1756470233257,0.67,209.59,209.54,20.0]
[1756470233577,19.17842078,209.57,209.54,20.0]
[1756470233752,45.84842078,209.57,209.54,20.0]
[1756470234561,19.84842078,209.56,209.54,20.0]
[1756470234761,45.17842078,209.57,209.54,20.0]
[1756470235066,45.84842078,209.57,209.54,20.0]
[1756470235269,26.67,209.57,209.54,20.0]
[1756470235470,45.84842078,209.57,209.54,20.0]
[1756470235877,19.23842078,209.56,209.54,20.0]
[1756470236373,19.90842078,209.56,209.54,20.0]
[1756470236763,0.06,209.56,209.54,20.0]
[1756470237077,19.23842078,209.56,209.54,20.0]
[1756470237279,19.90842078,209.56,209.54,20.0]
[1756470237463,19.17842078,209.55,209.54,20.0]
[1756470237969,0.73,209.56,209.54,20.0]
[1756470238162,19.17842078,209.55,209.54,24.77235849]
[1756470238870,0.73,209.56,209.54,24.77235849]
[1756470239095,19.90842078,209.56,209.54,24.77235849]
[1756470239984,19.84842078,209.55,209.54,20.0]
[1756470240985,19.84842078,209.55,209.51,24.77300738]
[1756470241171,0.06,209.56,209.54,20.0]
[1756470241877,0.67,209.55,209.54,20.0]
[1756470242377,19.84842078,209.55,209.54,20.0]
[1756470242880,0.67,209.55,209.54,20.0]
[1756470243081,19.84842078,209.55,209.54,20.0]
[1756470243383,0.06,209.56,209.54,20.0]
[1756470243584,0.06,209.56,209.55,20.0]
[1756470243987,19.23842078,209.56,209.55,20.0]
[1756470244163,19.90842078,209.56,209.55,20.0]
[1756470244688,19.23842078,209.56,209.55,20.0]
[1756470245057,0.73,209.56,209.55,20.0]
[1756470245283,19.90842078,209.56,209.53,20.0]
[1756470245473,19.90842078,209.56,209.55,20.0]
[1756470245474,19.23842078,209.56,209.55,20.0]
[1756470246083,19.90842078,209.56,209.55,20.0]
[1756470246484,0.73,209.56,209.55,20.0]
[1756470246685,19.90842078,209.56,209.55,20.0]
[1756470246879,19.23842078,209.56,209.53,24.77257786]
[1756470247075,0.06,209.56,209.55,20.0]
[1756470247275,19.23842078,209.56,209.55,20.0]
[1756470247476,0.06,209.56,209.55,20.0]
[1756470247676,19.23842078,209.56,209.55,20.0]
[1756470248387,0.06,209.56,209.55,20.0]
[1756470248890,19.23842078,209.56,209.55,20.0]
[1756470249274,12.52013246,209.56,209.55,20.0]
[1756470250899,12.52013246,209.56,209.55,24.77213075]
[1756470251288,12.52013246,209.56,209.55,20.0]
[1756470252285,0.06,209.56,209.55,24.77213075]
[1756470253081,12.52013246,209.56,209.55,20.0]
[1756470253803,12.52013246,209.56,209.55,59.38]
[1756470253997,12.52013246,209.56,209.55,64.15213075]
[1756470254175,0.06,209.56,209.55,64.15213075]
[1756470255072,0.06,209.56,209.55,64.09213075]
[1756470255275,0.06,209.56,209.55,144.69213075]
[1756470255482,0.06,209.56,209.55,64.09213075]
[1756470256572,0.06,209.56,209.55,24.77213075]
[1756470256973,0.06,209.56,209.55,64.09213075]
[1756470257381,0.06,209.56,209.55,76.55226321]
[1756470258084,0.06,209.56,209.55,64.09213075]
[1756470258390,0.06,209.56,209.55,64.05213075]
[1756470259088,0.06,209.56,209.55,24.77213075]
[1756470259298,0.06,209.56,209.55,64.05213075]
[1756470260171,0.06,209.56,209.55,24.77213075]
[1756470260495,0.06,209.56,209.55,64.01213075]
[1756470260991,23.53554977,209.6,209.59,20.0]
[1756470261499,36.66568223,209.6,209.59,59.32]
[1756470261705,36.66568223,209.6,209.59,20.0]
[1756470261990,24.20554977,209.6,209.59,20.0]
[1756470262195,36.66568223,209.6,209.59,20.0]
[1756470263483,24.20554977,209.6,209.59,20.0]
[1756470265770,36.66568223,209.6,209.57,20.0]
[1756470265978,23.53554977,209.6,209.59,20.0]
[1756470266391,23.53554977,209.6,209.59,24.77122]
[1756470266898,23.53554977,209.6,209.59,64.07122]
[1756470267095,1.0426414,209.69,209.61,57.06445023]
[1756470267402,27.0426414,209.69,209.67,20.0]
[1756470267583,12.46013246,209.68,209.67,20.0]
[1756470267776,1.0426414,209.69,209.67,20.0]
[1756470267982,12.46013246,209.68,209.67,20.0]
[1756470268704,1.0426414,209.69,209.67,20.0]
[1756470269000,12.46013246,209.68,209.67,20.0]
[1756470269304,13.50277386,209.69,209.67,20.0]
[1756470269799,14.17277386,209.69,209.67,20.0]
[1756470269979,13.13013246,209.68,209.67,20.0]
[1756470270298,1.0426414,209.69,209.67,82.51382531]
[1756470270499,1.0426414,209.69,209.68,39.9]
[1756470270729,1.0426414,209.69,209.68,57.06445023]
[1756470270883,1.0426414,209.69,209.68,96.30445023]
[1756470271294,1.0426414,209.69,209.68,96.96445023]
[1756470271485,1.0426414,209.69,209.68,109.42458269]
[1756470271813,1.0426414,209.69,209.68,96.96445023]
[1756470272677,1.0426414,209.69,209.68,101.7336223]
[1756470273083,1.0426414,209.69,209.68,114.19375476]
[1756470273275,1.0426414,209.69,209.68,114.17375476]
[1756470273477,1.1026414,209.69,209.68,70.70489854]
[1756470273875,0.4226414,209.69,209.68,34.98034607]
[1756470274104,1e-08,209.69,209.68,74.22034607]
[1756470274282,1e-08,209.69,209.68,74.36250764]
[1756470274484,1e-08,209.69,209.68,87.2995573]
[1756470274690,1e-08,209.69,209.68,107.2995573]
[1756470274899,4.33811929,209.87,209.82,20.0]
[1756470274900,4.76508148,209.86,209.82,20.0]
[1756470275219,4.7644004,209.89,209.82,20.0]
[1756470275387,4.7644004,209.89,209.83,20.0]
[1756470275586,12.46013246,209.84,209.83,19.28]
[1756470275808,13.12013246,209.84,209.81,19.28]
[1756470275987,26.0,209.86,209.83,19.28]
[1756470276189,12.46013246,209.84,209.79,19.28]
[1756470276486,0.14216157,209.87,209.76,19.28]
[1756470276487,0.66,209.85,209.76,19.28]
[1756470276811,12.46013246,209.82,209.81,19.28]
[1756470276989,0.66,209.82,209.81,19.28]
[1756470277304,0.66,209.85,209.83,19.28]
[1756470277697,13.12013246,209.85,209.83,19.28]
[1756470277892,26.0,209.88,209.83,19.28]
[1756470277893,13.12013246,209.84,209.83,19.28]
[1756470278106,13.12013246,209.84,209.81,19.28]
[1756470278313,12.46013246,209.82,209.79,19.28]
[1756470278519,12.46013246,209.8,209.79,19.28]
[1756470278683,0.66,209.8,209.79,19.28]
[1756470279186,13.12013246,209.8,209.79,19.28]
[1756470279387,0.66,209.84,209.8,19.28]
[1756470279618,0.66,209.83,209.82,19.28]
[1756470280513,19.78262307,209.83,209.82,19.28]
[1756470280688,0.66,209.83,209.82,19.28]
[1756470280892,5.42576276,209.83,209.8,19.28]
[1756470281100,19.12262307,209.82,209.8,19.28]
[1756470281496,0.66,209.82,209.8,19.28]
[1756470281807,4.76576781,209.83,209.82,19.28]
[1756470282189,5.42576781,209.83,209.8,19.28]
[1756470282387,4.76576781,209.83,209.82,19.28]
[1756470282589,18.3588597,209.94,209.85,19.28]
[1756470282807,19.12262307,209.86,209.85,19.28]
[1756470283011,19.12262307,209.86,209.81,19.28]
[1756470283012,0.66,209.86,209.81,19.28]
[1756470283217,19.12262307,209.82,209.8,19.28]
[1756470283505,19.78262307,209.81,209.8,19.28]
[1756470284815,24.54884012,209.81,209.8,19.28]
[1756470285310,24.54884012,209.81,209.78,19.28]
[1756470285524,24.54884012,209.81,209.77,19.28]
[1756470285525,0.66,209.8,209.77,19.28]
[1756470285817,19.12262307,209.78,209.75,19.28]
[1756470286024,19.12262307,209.76,209.75,19.28]
[1756470286314,0.66,209.76,209.75,19.28]
[1756470286519,19.78262307,209.76,209.75,19.28]
[1756470286816,19.78262307,209.76,209.72,19.28]
[1756470286994,19.12262307,209.73,209.72,19.28]
[1756470287194,5.42758045,209.75,209.74,19.28]
[1756470287410,24.55020352,209.75,209.72,19.28]
[1756470287611,19.12262307,209.73,209.72,19.28]
[1756470287806,19.78262307,209.73,209.72,19.28]
[1756470287998,0.66,209.73,209.7,19.28]
[1756470288301,19.12262307,209.73,209.7,19.28]
[1756470288611,19.12262307,209.73,209.72,19.28]
[1756470289118,19.12262307,209.74,209.72,19.28]
[1756470289305,19.12262307,209.73,209.72,19.28]
[1756470289727,19.78262307,209.73,209.72,19.28]
[1756470290227,19.12262307,209.73,209.72,19.28]
[1756470290399,19.78262307,209.73,209.72,19.28]
[1756470290797,0.72,209.88,209.76,19.28]
[1756470290992,5.42646398,209.8,209.76,19.28]
[1756470291197,0.66,209.83,209.81,19.28]
[1756470291422,4.76553779,209.84,209.81,19.28]
[1756470291624,19.78262307,209.83,209.81,19.28]
[1756470291994,0.66,209.83,209.81,19.28]
[1756470292193,24.54846185,209.83,209.81,19.28]
[1756470292593,19.12262307,209.82,209.81,19.28]
[1756470293017,19.78262307,209.82,209.81,19.28]
[1756470293409,19.12262307,209.82,209.81,19.28]
[1756470294523,23.88846185,209.83,209.81,19.28]
[1756470294709,24.54846185,209.83,209.81,19.28]
[1756470295515,23.88861296,209.82,209.81,19.28]
[1756470295895,24.54861296,209.82,209.79,19.28]
[1756470296102,19.12262307,209.8,209.77,19.28]
[1756470296329,19.12262307,209.78,209.77,19.28]
[1756470296514,19.12262307,209.81,209.77,19.94]
[1756470296724,19.12262307,209.81,209.77,19.28]
[1756470296934,19.12262307,209.8,209.79,19.28]
[1756470297432,24.5490673,209.8,209.79,19.28]
[1756470299719,23.8890673,209.8,209.79,19.28]
[1756470300035,24.5490673,209.8,209.79,19.28]
[1756470300237,24.69122887,209.8,209.77,19.28]
[1756470300413,19.12262307,209.78,209.77,19.28]
[1756470300615,23.88952172,209.78,209.77,19.28]
[1756470301115,0.68,209.78,209.75,19.28]
[1756470301310,0.68,209.77,209.73,19.28]
[1756470301540,12.44137017,209.74,209.71,19.28]
[1756470301732,12.44137017,209.72,209.71,19.28]
[1756470302040,12.44137017,209.75,209.73,19.28]
[1756470302250,16.67857993,209.85,209.73,19.28]
[1756470302455,12.44137017,209.78,209.76,19.28]
[1756470302624,12.44137017,209.77,209.76,19.28]
[1756470302933,4.76669977,209.79,209.78,19.28]
[1756470303432,0.14216157,209.82,209.78,19.28]
[1756470303755,0.68,209.81,209.78,19.28]
[1756470303939,12.44137017,209.79,209.76,19.28]
[1756470304249,38.44137017,209.77,209.74,19.28]
[1756470304441,26.68,209.77,209.74,19.28]
[1756470304625,17.20895062,209.75,209.74,19.28]
[1756470304934,17.88895062,209.75,209.74,19.28]
[1756470305144,12.44137017,209.75,209.74,19.28]
[1756470305922,5.44598989,209.82,209.78,19.28]
[1756470306141,12.44137017,209.84,209.81,19.28]
[1756470306321,12.44137017,209.87,209.86,19.28]
[1756470306842,12.44137017,209.87,209.78,12.44137017]
[1756470306843,17.8862246,209.87,209.84,19.28]
[1756470307033,4.24127226,209.94,209.84,19.28]
[1756470307243,0.68,209.9,209.88,19.28]
[1756470307541,4.76349259,209.93,209.9,19.28]
[1756470307737,5.44349259,209.93,209.87,19.28]
[1756470307940,17.35222407,209.93,209.87,19.28]
[1756470308122,17.35222407,209.93,209.88,19.28]
[1756470308323,19.11402707,209.89,209.88,19.28]
[1756470308719,23.87842747,209.89,209.88,19.28]
[1756470308919,24.55842747,209.89,209.86,19.28]
[1756470309238,19.11402707,209.87,209.86,19.28]
[1756470309423,19.79402707,209.87,209.86,19.28]
[1756470309620,0.68,209.91,209.84,24.04547105]
[1756470309839,0.68,209.91,209.89,19.28]
[1756470310035,19.11402707,209.9,209.89,19.28]
[1756470310230,0.68,209.91,209.89,19.28]
[1756470310435,19.11402707,209.9,209.89,19.28]
[1756470310631,4.7644004,209.89,209.87,19.28]
[1756470310825,19.11402707,209.88,209.87,19.28]
[1756470311640,19.79402707,209.88,209.87,19.28]
[1756470311939,19.11402707,209.88,209.87,19.28]
[1756470312735,4.7646274,209.88,209.87,19.28]
[1756470312943,19.11402707,209.88,209.87,19.28]
[1756470314862,23.87865447,209.88,209.87,19.28]
[1756470316448,24.55865447,209.88,209.84,19.28]
[1756470316657,19.11402707,209.85,209.84,19.28]
[1756470316948,19.11402707,209.85,209.82,19.28]
[1756470316949,4.76553564,209.84,209.82,19.28]
[1756470317134,5.44535495,209.85,209.84,19.28]
[1756470317927,5.44535495,209.85,209.82,19.28]
[1756470318123,0.68,209.84,209.82,19.28]
[1756470318329,19.11402707,209.83,209.8,19.28]
[1756470318559,19.11402707,209.81,209.8,19.28]
[1756470318756,5.4450029,209.87,209.8,19.28]
[1756470318970,19.11402707,209.85,209.84,19.28]
[1756470320554,4.76485443,209.87,209.84,20.0]
[1756470320804,4.76485443,209.87,209.86,19.28]
[1756470320954,4.7644004,209.89,209.86,19.28]
[1756470321580,4.7644004,209.89,209.88,19.28]
[1756470321786,5.4444004,209.89,209.88,19.28]
[1756470321991,24.55842747,209.89,209.88,19.28]
[1756470322201,24.55842747,209.89,209.86,19.28]
[1756470322370,19.11402707,209.87,209.86,19.28]
[1756470322870,19.11402707,209.87,209.82,0.72]
[1756470322871,0.68,209.87,209.8,19.28]